[Event "Titled Tuesday Blitz August 3 2021"]
[White "Krysa, Leandro"]
[Black "Drogovoz, Irina"]
[WhiteFideId "116807"]
[BlackFideId "4176715"]
[WhiteElo "2490"]
[BlackElo "2163"]
[Result "0-1"]
[Round "05"]
[TimeControl "180+1"]
[Date "2021.08.03"]
[WhiteClock "0:00:04"]
[BlackClock "0:00:03"]

1. e4 {[%clk 0:03:00]}  c5 {[%clk 0:02:58]} 2. Nf3 {[%clk 0:03:00]}  d6 {[%clk 0:02:59]} 3. d4 {[%clk 0:02:59]}  cxd4 {[%clk 0:03:00]} 4. Nxd4 {[%clk 0:03:00]}  Nf6 {[%clk 0:03:00]} 5. Bc4 {[%clk 0:02:59]}  a6 {[%clk 0:02:59]} 6. O-O {[%clk 0:02:54]}  e6 {[%clk 0:02:50]} 7. Re1 {[%clk 0:02:52]}  Be7 {[%clk 0:02:50]} 8. Bf1 {[%clk 0:02:50]}  O-O {[%clk 0:02:50]} 9. c4 {[%clk 0:02:50]}  b6 {[%clk 0:02:49]} 10. Nc3 {[%clk 0:02:49]}  Bb7 {[%clk 0:02:50]} 11. b3 {[%clk 0:02:45]}  Nbd7 {[%clk 0:02:50]} 12. Bb2 {[%clk 0:02:45]}  Rc8 {[%clk 0:02:50]} 13. Qd2 {[%clk 0:02:36]}  Rc7 {[%clk 0:02:23]} 14. Rad1 {[%clk 0:02:33]}  Qa8 {[%clk 0:02:21]} 15. f3 {[%clk 0:02:32]}  Rd8 {[%clk 0:02:22]} 16. Kh1 {[%clk 0:02:29]}  Nc5 {[%clk 0:02:18]} 17. Qf2 {[%clk 0:02:26]}  Bf8 {[%clk 0:02:14]} 18. Qg3 {[%clk 0:02:24]}  Rcd7 {[%clk 0:02:10]} 19. Rd2 {[%clk 0:02:19]}  a5 {[%clk 0:01:56]} 20. Ndb5 {[%clk 0:02:15]}  d5 {[%clk 0:01:55]} 21. cxd5 {[%clk 0:02:11]}  exd5 {[%clk 0:01:54]} 22. e5 {[%clk 0:02:11]}  Ne8 {[%clk 0:01:50]} 23. Red1 {[%clk 0:02:02]}  Ne6 {[%clk 0:01:47]} 24. Ne2 {[%clk 0:01:37]}  N8c7 {[%clk 0:01:37]} 25. Ned4 {[%clk 0:01:26]}  Nxb5 {[%clk 0:01:34]} 26. Bxb5 {[%clk 0:01:24]}  Rc7 {[%clk 0:01:35]} 27. Nf5 {[%clk 0:01:21]}  Bc6 {[%clk 0:01:24]} 28. Bd3 {[%clk 0:01:11]}  g6 {[%clk 0:01:23]} 29. Nd6 {[%clk 0:01:09]}  Rcd7 {[%clk 0:01:09]} 30. Bf5 {[%clk 0:01:07]}  Bg7 {[%clk 0:00:42]} 31. Nxf7 {[%clk 0:00:52]}  Kxf7 {[%clk 0:00:39]} 32. Bxe6+ {[%clk 0:00:51]}  Kxe6 {[%clk 0:00:39]} 33. Qh3+ {[%clk 0:00:47]}  Ke7 {[%clk 0:00:37]} 34. e6 {[%clk 0:00:46]}  Bxb2 {[%clk 0:00:33]} 35. Rxb2 {[%clk 0:00:38]}  Rc7 {[%clk 0:00:28]} 36. Qxh7+ {[%clk 0:00:33]}  Kd6 {[%clk 0:00:29]} 37. Qxg6 {[%clk 0:00:31]}  Re7 {[%clk 0:00:15]} 38. Qg3+ {[%clk 0:00:26]}  Kc5 {[%clk 0:00:13]} 39. Rc2+ {[%clk 0:00:24]}  Kb5 {[%clk 0:00:13]} 40. Rdc1 {[%clk 0:00:23]}  Bb7 {[%clk 0:00:12]} 41. Qe5 {[%clk 0:00:09]}  Ka6 {[%clk 0:00:10]} 42. f4 {[%clk 0:00:08]}  Rh8 {[%clk 0:00:09]} 43. f5 {[%clk 0:00:08]}  Qg8 {[%clk 0:00:09]} 44. Qe2+ {[%clk 0:00:06]}  Ka7 {[%clk 0:00:08]} 45. Rc7 {[%clk 0:00:06]}  Qh7 {[%clk 0:00:07]} 46. h3 {[%clk 0:00:06]}  Rxc7 {[%clk 0:00:06]} 47. Rf1 {[%clk 0:00:07]}  Qe7 {[%clk 0:00:07]} 48. f6 {[%clk 0:00:07]}  Qd6 {[%clk 0:00:06]} 49. e7 {[%clk 0:00:07]}  d4 {[%clk 0:00:05]} 50. e8=Q {[%clk 0:00:06]}  Rxh3+ {[%clk 0:00:05]} 51. Kg1 {[%clk 0:00:05]}  Qh2+ {[%clk 0:00:04]} 52. Kf2 {[%clk 0:00:05]}  Qxg2+ {[%clk 0:00:04]} 53. Ke1 {[%clk 0:00:06]}  Re3 {[%clk 0:00:02]} 54. Q8xe3 {[%clk 0:00:05]}  dxe3 {[%clk 0:00:02]} 55. Qxg2 {[%clk 0:00:05]}  Bxg2 {[%clk 0:00:03]} 56. f7 {[%clk 0:00:06]}  Rc1+ {[%clk 0:00:01]} 57. Ke2 {[%clk 0:00:05]}  Rxf1 {[%clk 0:00:02]} 58. f8=Q {[%clk 0:00:04]}  Rxf8 {[%clk 0:00:03]} 0-1


[Site "https://www.chess.com"]

[Event "Titled Tuesday Blitz August 3 2021"]
[White "Lazavik, Denis"]
[Black "Mirzoev, Azer"]
[WhiteFideId "13515110"]
[BlackFideId "13400304"]
[WhiteElo "2436"]
[BlackElo "2525"]
[Result "0-1"]
[Round "05"]
[TimeControl "180+1"]
[Date "2021.08.03"]
[WhiteClock "0:00:02"]
[BlackClock "0:01:02"]

1. d4 {[%clk 0:03:00]}  d5 {[%clk 0:03:00]} 2. c4 {[%clk 0:02:59]}  c6 {[%clk 0:03:00]} 3. Nf3 {[%clk 0:02:59]}  Nf6 {[%clk 0:03:00]} 4. e3 {[%clk 0:02:59]}  Bf5 {[%clk 0:02:57]} 5. Nc3 {[%clk 0:02:58]}  e6 {[%clk 0:02:58]} 6. Nh4 {[%clk 0:02:58]}  Be4 {[%clk 0:02:58]} 7. f3 {[%clk 0:02:58]}  Bg6 {[%clk 0:02:58]} 8. Qb3 {[%clk 0:02:58]}  Qc7 {[%clk 0:02:58]} 9. Bd2 {[%clk 0:02:57]}  Nbd7 {[%clk 0:02:58]} 10. cxd5 {[%clk 0:02:52]}  exd5 {[%clk 0:02:54]} 11. O-O-O {[%clk 0:02:49]}  Be7 {[%clk 0:02:54]} 12. Nxg6 {[%clk 0:02:43]}  hxg6 {[%clk 0:02:54]} 13. Kb1 {[%clk 0:02:42]}  O-O-O {[%clk 0:02:49]} 14. e4 {[%clk 0:02:34]}  dxe4 {[%clk 0:02:49]} 15. fxe4 {[%clk 0:02:33]}  Nb6 {[%clk 0:02:35]} 16. e5 {[%clk 0:01:58]}  Nfd5 {[%clk 0:02:35]} 17. Bd3 {[%clk 0:01:46]}  Kb8 {[%clk 0:02:33]} 18. Ne4 {[%clk 0:01:42]}  f6 {[%clk 0:02:29]} 19. e6 {[%clk 0:01:26]}  Rxh2 {[%clk 0:02:25]} 20. Rxh2 {[%clk 0:00:50]}  Qxh2 {[%clk 0:02:25]} 21. a4 {[%clk 0:00:48]}  Qc7 {[%clk 0:02:19]} 22. a5 {[%clk 0:00:47]}  Nc8 {[%clk 0:02:18]} 23. a6 {[%clk 0:00:47]}  Qb6 {[%clk 0:02:15]} 24. Qa4 {[%clk 0:00:39]}  Nb4 {[%clk 0:02:02]} 25. axb7 {[%clk 0:00:33]}  Qxb7 {[%clk 0:02:01]} 26. Bxb4 {[%clk 0:00:31]}  Bxb4 {[%clk 0:01:57]} 27. Ba6 {[%clk 0:00:28]}  Qb6 {[%clk 0:01:55]} 28. Rc1 {[%clk 0:00:28]}  Ne7 {[%clk 0:01:54]} 29. Rc4 {[%clk 0:00:27]}  Be1 {[%clk 0:01:29]} 30. Nc5 {[%clk 0:00:27]}  Kc7 {[%clk 0:01:27]} 31. Nd7 {[%clk 0:00:22]}  Qa5 {[%clk 0:01:23]} 32. Qxa5+ {[%clk 0:00:05]}  Bxa5 {[%clk 0:01:21]} 33. b4 {[%clk 0:00:04]}  Bb6 {[%clk 0:01:19]} 34. b5 {[%clk 0:00:04]}  Kd6 {[%clk 0:01:18]} 35. bxc6 {[%clk 0:00:05]}  Nxc6 {[%clk 0:01:17]} 36. Bb5 {[%clk 0:00:03]}  Nxd4 {[%clk 0:01:16]} 37. Nxb6 {[%clk 0:00:02]}  Nxb5 {[%clk 0:01:14]} 38. e7 {[%clk 0:00:02]}  Kxe7 {[%clk 0:01:13]} 39. Nc8+ {[%clk 0:00:02]}  Ke6 {[%clk 0:01:09]} 40. Rc5 {[%clk 0:00:02]}  Nd6 {[%clk 0:01:08]} 41. Nxa7 {[%clk 0:00:02]}  Rb8+ {[%clk 0:01:08]} 42. Kc2 {[%clk 0:00:02]}  Kd7 {[%clk 0:01:04]} 43. Nc6 {[%clk 0:00:02]}  Rc8 {[%clk 0:01:02]} 0-1


[Site "https://www.chess.com"]

[Event "Titled Tuesday Blitz August 3 2021"]
[White "Lee, Qing Aun"]
[Black "Plotnikov, Pavel"]
[WhiteFideId "5804167"]
[BlackFideId "4170342"]
[WhiteElo "2023"]
[BlackElo "2298"]
[Result "1-0"]
[Round "05"]
[TimeControl "180+1"]
[Date "2021.08.03"]
[WhiteClock "0:02:26"]
[BlackClock "0:02:03"]

1. d4 {[%clk 0:03:00]}  Nf6 {[%clk 0:02:58]} 2. Nc3 {[%clk 0:03:00]}  d5 {[%clk 0:02:57]} 3. Bf4 {[%clk 0:03:00]}  c5 {[%clk 0:02:57]} 4. e3 {[%clk 0:02:59]}  Nc6 {[%clk 0:02:56]} 5. Nb5 {[%clk 0:02:59]}  e5 {[%clk 0:02:46]} 6. dxe5 {[%clk 0:02:58]}  Ng4 {[%clk 0:02:23]} 7. e6 {[%clk 0:02:34]}  Bxe6 {[%clk 0:02:12]} 8. Nc7+ {[%clk 0:02:32]}  Ke7 {[%clk 0:02:10]} 9. Nxe6 {[%clk 0:02:30]}  fxe6 {[%clk 0:02:02]} 10. Qxg4 {[%clk 0:02:29]}  Kd7 {[%clk 0:02:03]} 11. O-O-O {[%clk 0:02:26]} 1-0


[Site "https://www.chess.com"]

[Event "Titled Tuesday Blitz August 3 2021"]
[White "Leitao, Rafael"]
[Black "Farahat, Ali"]
[WhiteFideId "2101246"]
[BlackFideId "10600507"]
[WhiteElo "2609"]
[BlackElo "2321"]
[Result "0-1"]
[Round "05"]
[TimeControl "180+1"]
[Date "2021.08.03"]
[WhiteClock "0:00:06"]
[BlackClock "0:00:13"]

1. e4 {[%clk 0:03:00]}  e5 {[%clk 0:02:59]} 2. Nf3 {[%clk 0:03:00]}  Nc6 {[%clk 0:02:59]} 3. Bb5 {[%clk 0:03:00]}  a6 {[%clk 0:02:59]} 4. Ba4 {[%clk 0:02:55]}  Nf6 {[%clk 0:02:59]} 5. d3 {[%clk 0:02:54]}  b5 {[%clk 0:02:58]} 6. Bb3 {[%clk 0:02:52]}  Be7 {[%clk 0:02:58]} 7. a4 {[%clk 0:02:50]}  b4 {[%clk 0:02:58]} 8. O-O {[%clk 0:02:50]}  O-O {[%clk 0:02:58]} 9. Re1 {[%clk 0:02:43]}  d6 {[%clk 0:02:57]} 10. h3 {[%clk 0:02:41]}  Na5 {[%clk 0:02:54]} 11. Ba2 {[%clk 0:02:38]}  b3 {[%clk 0:02:54]} 12. cxb3 {[%clk 0:02:18]}  Nc6 {[%clk 0:02:54]} 13. Bd2 {[%clk 0:02:00]}  Rb8 {[%clk 0:02:53]} 14. Na3 {[%clk 0:01:58]}  Nb4 {[%clk 0:02:46]} 15. Bxb4 {[%clk 0:01:56]}  Rxb4 {[%clk 0:02:46]} 16. Nc2 {[%clk 0:01:57]}  Rb8 {[%clk 0:02:45]} 17. b4 {[%clk 0:01:57]}  c5 {[%clk 0:02:33]} 18. bxc5 {[%clk 0:01:52]}  Rxb2 {[%clk 0:02:34]} 19. Bc4 {[%clk 0:01:45]}  Qa5 {[%clk 0:02:21]} 20. cxd6 {[%clk 0:01:37]}  Bxd6 {[%clk 0:02:22]} 21. d4 {[%clk 0:01:35]}  Nd7 {[%clk 0:02:11]} 22. Ne3 {[%clk 0:01:25]}  Qb4 {[%clk 0:01:57]} 23. Rc1 {[%clk 0:01:22]}  exd4 {[%clk 0:01:49]} 24. Nf5 {[%clk 0:01:22]}  Ne5 {[%clk 0:01:45]} 25. Nxe5 {[%clk 0:01:12]}  Bxe5 {[%clk 0:01:43]} 26. Qf3 {[%clk 0:00:47]}  Be6 {[%clk 0:01:32]} 27. Bd3 {[%clk 0:00:39]}  Rb3 {[%clk 0:01:27]} 28. Rcd1 {[%clk 0:00:36]}  g6 {[%clk 0:01:16]} 29. Nh6+ {[%clk 0:00:34]}  Kg7 {[%clk 0:01:16]} 30. Ng4 {[%clk 0:00:34]}  Bxg4 {[%clk 0:01:16]} 31. hxg4 {[%clk 0:00:32]}  Qxa4 {[%clk 0:01:12]} 32. Qe2 {[%clk 0:00:27]}  a5 {[%clk 0:01:03]} 33. g3 {[%clk 0:00:27]}  Qb4 {[%clk 0:01:02]} 34. f4 {[%clk 0:00:27]}  Bb8 {[%clk 0:00:57]} 35. e5 {[%clk 0:00:28]}  a4 {[%clk 0:00:47]} 36. f5 {[%clk 0:00:27]}  a3 {[%clk 0:00:37]} 37. f6+ {[%clk 0:00:24]}  Kh8 {[%clk 0:00:36]} 38. Qh2 {[%clk 0:00:20]}  Rxd3 {[%clk 0:00:34]} 39. Rb1 {[%clk 0:00:17]}  Qd2 {[%clk 0:00:30]} 40. Re2 {[%clk 0:00:17]}  Qg5 {[%clk 0:00:29]} 41. Qh3 {[%clk 0:00:15]}  Re3 {[%clk 0:00:28]} 42. Rh2 {[%clk 0:00:14]}  h5 {[%clk 0:00:27]} 43. Rf1 {[%clk 0:00:12]}  d3 {[%clk 0:00:25]} 44. Qg2 {[%clk 0:00:11]}  Ba7 {[%clk 0:00:24]} 45. Kh1 {[%clk 0:00:11]}  Re2 {[%clk 0:00:24]} 46. Qf3 {[%clk 0:00:09]}  Rxh2+ {[%clk 0:00:24]} 47. Kxh2 {[%clk 0:00:10]}  Qxg4 {[%clk 0:00:23]} 48. Qb7 {[%clk 0:00:09]}  h4 {[%clk 0:00:23]} 49. Qxa7 {[%clk 0:00:08]}  Qxg3+ {[%clk 0:00:23]} 50. Kh1 {[%clk 0:00:08]}  h3 {[%clk 0:00:22]} 51. Rg1 {[%clk 0:00:07]}  Qf3+ {[%clk 0:00:22]} 52. Kh2 {[%clk 0:00:07]}  d2 {[%clk 0:00:22]} 53. Qc5 {[%clk 0:00:07]}  Rd8 {[%clk 0:00:14]} 54. e6 {[%clk 0:00:07]}  d1=Q {[%clk 0:00:14]} 55. Rxd1 {[%clk 0:00:06]}  Qg2# {[%clk 0:00:13]} 0-1


[Site "https://www.chess.com"]

[Event "Titled Tuesday Blitz August 3 2021"]
[White "Leve, Nitai"]
[Black "Ibrahimli, Murad"]
[WhiteFideId "2006898"]
[BlackFideId "13410229"]
[WhiteElo "2144"]
[BlackElo "2109"]
[Result "0-1"]
[Round "05"]
[TimeControl "180+1"]
[Date "2021.08.03"]
[WhiteClock "0:00:01"]
[BlackClock "0:01:29"]

1. e4 {[%clk 0:02:32]}  c5 {[%clk 0:02:59]} 2. Nf3 {[%clk 0:02:31]}  d6 {[%clk 0:02:59]} 3. d4 {[%clk 0:02:32]}  cxd4 {[%clk 0:02:59]} 4. Qxd4 {[%clk 0:02:32]}  Nf6 {[%clk 0:02:59]} 5. Bg5 {[%clk 0:02:32]}  a6 {[%clk 0:02:52]} 6. c4 {[%clk 0:02:32]}  Nc6 {[%clk 0:02:52]} 7. Qe3 {[%clk 0:02:33]}  Bg4 {[%clk 0:02:52]} 8. Be2 {[%clk 0:02:31]}  Bxf3 {[%clk 0:02:47]} 9. Bxf3 {[%clk 0:02:32]}  Ne5 {[%clk 0:02:45]} 10. Be2 {[%clk 0:02:31]}  Rc8 {[%clk 0:02:40]} 11. Nd2 {[%clk 0:02:21]}  e6 {[%clk 0:02:37]} 12. O-O {[%clk 0:02:20]}  Be7 {[%clk 0:02:37]} 13. Rfd1 {[%clk 0:02:04]}  O-O {[%clk 0:02:36]} 14. Rac1 {[%clk 0:02:03]}  h6 {[%clk 0:02:34]} 15. Bf4 {[%clk 0:01:58]}  Qc7 {[%clk 0:02:22]} 16. c5 {[%clk 0:01:40]}  dxc5 {[%clk 0:02:04]} 17. Nc4 {[%clk 0:01:13]}  Nxc4 {[%clk 0:02:04]} 18. Rxc4 {[%clk 0:01:10]}  Qc6 {[%clk 0:02:04]} 19. Bxh6 {[%clk 0:00:57]}  b5 {[%clk 0:01:56]} 20. Bxg7 {[%clk 0:00:12]}  bxc4 {[%clk 0:01:55]} 21. Qg5 {[%clk 0:00:06]}  Nh7 {[%clk 0:01:48]} 22. Qg3 {[%clk 0:00:05]}  Bg5 {[%clk 0:01:39]} 23. Bf6 {[%clk 0:00:03]}  Qxe4 {[%clk 0:01:30]} 24. h4 {[%clk 0:00:02]}  Nxf6 {[%clk 0:01:28]} 25. Qxg5+ {[%clk 0:00:01]}  Qg6 {[%clk 0:01:29]} 0-1


[Site "https://www.chess.com"]

[Event "Titled Tuesday Blitz August 3 2021"]
[White "Madaminov, Mukhiddin"]
[Black "Kalashian, David"]
[WhiteFideId "14210703"]
[BlackFideId "13302418"]
[WhiteElo "1747"]
[BlackElo "2490"]
[Result "1-0"]
[Round "05"]
[TimeControl "180+1"]
[Date "2021.08.03"]
[WhiteClock "0:01:17"]
[BlackClock "0:00:21"]

1. e4 {[%clk 0:03:00]}  c6 {[%clk 0:02:58]} 2. Nf3 {[%clk 0:03:00]}  g6 {[%clk 0:02:59]} 3. d4 {[%clk 0:03:00]}  Bg7 {[%clk 0:02:59]} 4. Bd3 {[%clk 0:02:56]}  d6 {[%clk 0:03:00]} 5. O-O {[%clk 0:02:54]}  Nf6 {[%clk 0:03:00]} 6. c3 {[%clk 0:02:55]}  O-O {[%clk 0:03:00]} 7. Nbd2 {[%clk 0:02:55]}  Nbd7 {[%clk 0:03:01]} 8. Re1 {[%clk 0:02:56]}  e5 {[%clk 0:03:01]} 9. Nf1 {[%clk 0:02:55]}  Re8 {[%clk 0:02:58]} 10. dxe5 {[%clk 0:02:53]}  dxe5 {[%clk 0:02:56]} 11. Ng3 {[%clk 0:02:52]}  Nc5 {[%clk 0:02:55]} 12. Bc2 {[%clk 0:02:50]}  Qc7 {[%clk 0:02:52]} 13. Be3 {[%clk 0:02:47]}  Rd8 {[%clk 0:02:43]} 14. Qb1 {[%clk 0:02:40]}  Ne6 {[%clk 0:02:38]} 15. h3 {[%clk 0:02:40]}  b6 {[%clk 0:02:36]} 16. a4 {[%clk 0:02:39]}  a5 {[%clk 0:02:26]} 17. Rd1 {[%clk 0:02:39]}  Ba6 {[%clk 0:02:24]} 18. Qa2 {[%clk 0:02:38]}  Nf4 {[%clk 0:02:16]} 19. Bb3 {[%clk 0:02:31]}  Rxd1+ {[%clk 0:02:02]} 20. Rxd1 {[%clk 0:02:32]}  Ne2+ {[%clk 0:02:02]} 21. Nxe2 {[%clk 0:02:31]}  Bxe2 {[%clk 0:02:03]} 22. Rd2 {[%clk 0:02:31]}  Bxf3 {[%clk 0:01:55]} 23. gxf3 {[%clk 0:02:32]}  Nh5 {[%clk 0:01:55]} 24. Qb1 {[%clk 0:02:19]}  Qe7 {[%clk 0:01:49]} 25. Qd3 {[%clk 0:02:16]}  Nf4 {[%clk 0:01:37]} 26. Bxf4 {[%clk 0:02:15]}  exf4 {[%clk 0:01:37]} 27. Qd7 {[%clk 0:02:16]}  Qf6 {[%clk 0:01:19]} 28. Qb7 {[%clk 0:02:08]}  Rf8 {[%clk 0:01:13]} 29. Qxb6 {[%clk 0:02:00]}  Qg5+ {[%clk 0:00:59]} 30. Kf1 {[%clk 0:02:00]}  Qh5 {[%clk 0:00:59]} 31. Ke2 {[%clk 0:01:57]}  Kh8 {[%clk 0:00:47]} 32. Rd8 {[%clk 0:01:56]}  Qxh3 {[%clk 0:00:44]} 33. Rxf8+ {[%clk 0:01:54]}  Bxf8 {[%clk 0:00:45]} 34. Qd8 {[%clk 0:01:48]}  Kg7 {[%clk 0:00:36]} 35. Qe8 {[%clk 0:01:48]}  Bd6 {[%clk 0:00:25]} 36. Qxf7+ {[%clk 0:01:37]}  Kh6 {[%clk 0:00:24]} 37. Qf6 {[%clk 0:01:37]}  Qd7 {[%clk 0:00:22]} 38. e5 {[%clk 0:01:34]}  Qe7 {[%clk 0:00:21]} 39. Qxd6 {[%clk 0:01:17]} 1-0


[Site "https://www.chess.com"]

[Event "Titled Tuesday Blitz August 3 2021"]
[White "Makhnev, Denis"]
[Black "Labussiere, Victor"]
[WhiteFideId "13707647"]
[BlackFideId "2183129"]
[WhiteElo "2537"]
[BlackElo "1921"]
[Result "1-0"]
[Round "05"]
[TimeControl "180+1"]
[Date "2021.08.03"]
[WhiteClock "0:00:06"]
[BlackClock "0:00:03"]

1. d4 {[%clk 0:03:00]}  d5 {[%clk 0:02:59]} 2. c4 {[%clk 0:03:01]}  dxc4 {[%clk 0:03:00]} 3. Nf3 {[%clk 0:03:01]}  Nf6 {[%clk 0:03:00]} 4. e3 {[%clk 0:03:01]}  e6 {[%clk 0:02:59]} 5. Bxc4 {[%clk 0:03:02]}  c5 {[%clk 0:03:00]} 6. O-O {[%clk 0:03:02]}  a6 {[%clk 0:03:00]} 7. dxc5 {[%clk 0:03:03]}  Bxc5 {[%clk 0:03:00]} 8. Qxd8+ {[%clk 0:03:02]}  Kxd8 {[%clk 0:03:01]} 9. Nfd2 {[%clk 0:03:03]}  b6 {[%clk 0:02:52]} 10. Nb3 {[%clk 0:03:01]}  Bd6 {[%clk 0:02:49]} 11. f3 {[%clk 0:03:02]}  Nbd7 {[%clk 0:02:40]} 12. e4 {[%clk 0:03:01]}  Ke7 {[%clk 0:02:34]} 13. Be3 {[%clk 0:03:00]}  Bb7 {[%clk 0:02:31]} 14. Nc3 {[%clk 0:02:54]}  Rhc8 {[%clk 0:02:23]} 15. Be2 {[%clk 0:02:55]}  b5 {[%clk 0:02:02]} 16. Rfd1 {[%clk 0:02:38]}  Rc7 {[%clk 0:01:25]} 17. a3 {[%clk 0:02:05]}  Rac8 {[%clk 0:01:24]} 18. Bf1 {[%clk 0:02:02]}  Be5 {[%clk 0:01:16]} 19. Nd4 {[%clk 0:02:02]}  Nc5 {[%clk 0:01:11]} 20. Rab1 {[%clk 0:01:56]}  g6 {[%clk 0:00:37]} 21. g4 {[%clk 0:01:30]}  Nfd7 {[%clk 0:00:36]} 22. g5 {[%clk 0:01:28]}  Bg7 {[%clk 0:00:30]} 23. b4 {[%clk 0:01:21]}  Nb3 {[%clk 0:00:25]} 24. Ncxb5 {[%clk 0:01:18]}  Nxd4 {[%clk 0:00:17]} 25. Bxd4 {[%clk 0:00:56]}  Bxd4+ {[%clk 0:00:15]} 26. Nxd4 {[%clk 0:00:57]}  Rc3 {[%clk 0:00:15]} 27. Rb3 {[%clk 0:00:38]}  Ne5 {[%clk 0:00:14]} 28. Be2 {[%clk 0:00:29]}  Rxb3 {[%clk 0:00:11]} 29. Nxb3 {[%clk 0:00:30]}  Rc3 {[%clk 0:00:12]} 30. Nc5 {[%clk 0:00:30]}  Bc8 {[%clk 0:00:12]} 31. f4 {[%clk 0:00:30]}  Nc4 {[%clk 0:00:08]} 32. Bxc4 {[%clk 0:00:25]}  Rxc4 {[%clk 0:00:09]} 33. Kf2 {[%clk 0:00:24]}  Rc3 {[%clk 0:00:09]} 34. Rd3 {[%clk 0:00:23]}  Rc2+ {[%clk 0:00:08]} 35. Kg3 {[%clk 0:00:23]}  Ke8 {[%clk 0:00:06]} 36. h4 {[%clk 0:00:23]}  Ke7 {[%clk 0:00:06]} 37. e5 {[%clk 0:00:13]}  Rc1 {[%clk 0:00:05]} 38. Ne4 {[%clk 0:00:11]}  Bb7 {[%clk 0:00:04]} 39. Nf6 {[%clk 0:00:11]}  Bd5 {[%clk 0:00:04]} 40. Nxd5+ {[%clk 0:00:11]}  exd5 {[%clk 0:00:05]} 41. h5 {[%clk 0:00:09]}  Ke6 {[%clk 0:00:05]} 42. h6 {[%clk 0:00:10]}  Rc4 {[%clk 0:00:04]} 43. Kf3 {[%clk 0:00:09]}  Rc1 {[%clk 0:00:04]} 44. Ke3 {[%clk 0:00:09]}  Re1+ {[%clk 0:00:03]} 45. Kf2 {[%clk 0:00:08]}  Rc1 {[%clk 0:00:04]} 46. a4 {[%clk 0:00:07]}  Rb1 {[%clk 0:00:03]} 47. Rd4 {[%clk 0:00:05]}  Ra1 {[%clk 0:00:03]} 48. a5 {[%clk 0:00:05]}  Rb1 {[%clk 0:00:04]} 49. Ke3 {[%clk 0:00:05]}  Rb3+ {[%clk 0:00:04]} 50. Kd2 {[%clk 0:00:05]}  Rf3 {[%clk 0:00:03]} 51. Kc2 {[%clk 0:00:05]}  Re3 {[%clk 0:00:03]} 52. b5 {[%clk 0:00:04]}  axb5 {[%clk 0:00:03]} 53. Kb2 {[%clk 0:00:04]}  Re2+ {[%clk 0:00:04]} 54. Kb3 {[%clk 0:00:04]}  Re1 {[%clk 0:00:04]} 55. Kb4 {[%clk 0:00:05]}  Rb1+ {[%clk 0:00:04]} 56. Kc5 {[%clk 0:00:05]}  b4 {[%clk 0:00:04]} 57. Rxb4 {[%clk 0:00:05]}  Rc1+ {[%clk 0:00:04]} 58. Kb6 {[%clk 0:00:05]}  Ra1 {[%clk 0:00:03]} 59. a6 {[%clk 0:00:06]} 1-0


[Site "https://www.chess.com"]

[Event "Titled Tuesday Blitz August 3 2021"]
[White "Maksimovic, Bojan"]
[Black "Swicarz, Maciej"]
[WhiteFideId "14408120"]
[BlackFideId "1113585"]
[WhiteElo "2439"]
[BlackElo "2199"]
[Result "1-0"]
[Round "05"]
[TimeControl "180+1"]
[Date "2021.08.03"]
[WhiteClock "0:00:09"]
[BlackClock "0:00:01"]

1. g3 {[%clk 0:02:48]}  f5 {[%clk 0:02:58]} 2. d3 {[%clk 0:02:43]}  Nf6 {[%clk 0:02:58]} 3. Bg2 {[%clk 0:02:43]}  d6 {[%clk 0:02:57]} 4. c4 {[%clk 0:02:35]}  g6 {[%clk 0:02:55]} 5. Nc3 {[%clk 0:02:35]}  Bg7 {[%clk 0:02:56]} 6. Nh3 {[%clk 0:02:36]}  O-O {[%clk 0:02:55]} 7. O-O {[%clk 0:02:33]}  e5 {[%clk 0:02:52]} 8. f4 {[%clk 0:02:33]}  c6 {[%clk 0:02:44]} 9. Qd2 {[%clk 0:02:33]}  h6 {[%clk 0:02:41]} 10. b3 {[%clk 0:02:33]}  Be6 {[%clk 0:02:40]} 11. Bb2 {[%clk 0:02:33]}  Qd7 {[%clk 0:02:40]} 12. Rad1 {[%clk 0:02:30]}  Na6 {[%clk 0:02:38]} 13. Nf2 {[%clk 0:02:12]}  Rae8 {[%clk 0:02:35]} 14. e3 {[%clk 0:02:10]}  Qc7 {[%clk 0:02:34]} 15. Ne2 {[%clk 0:02:09]}  Nd7 {[%clk 0:02:29]} 16. d4 {[%clk 0:02:07]}  e4 {[%clk 0:02:25]} 17. g4 {[%clk 0:01:57]}  d5 {[%clk 0:02:22]} 18. gxf5 {[%clk 0:01:53]}  gxf5 {[%clk 0:02:15]} 19. Ba3 {[%clk 0:01:50]}  Rf6 {[%clk 0:02:12]} 20. Rc1 {[%clk 0:01:50]}  Qb6 {[%clk 0:02:03]} 21. Kh1 {[%clk 0:01:37]}  Rg6 {[%clk 0:02:01]} 22. Bh3 {[%clk 0:01:36]}  Kh7 {[%clk 0:01:58]} 23. Ng3 {[%clk 0:01:36]}  Rf6 {[%clk 0:01:52]} 24. Nh5 {[%clk 0:01:36]}  Rf7 {[%clk 0:01:46]} 25. Rg1 {[%clk 0:01:22]}  Rg8 {[%clk 0:01:46]} 26. Bd6 {[%clk 0:01:09]}  Bh8 {[%clk 0:01:40]} 27. Rxg8 {[%clk 0:01:05]}  Kxg8 {[%clk 0:01:41]} 28. c5 {[%clk 0:01:04]}  Qd8 {[%clk 0:01:39]} 29. Rg1+ {[%clk 0:01:01]}  Kh7 {[%clk 0:01:39]} 30. Nd1 {[%clk 0:00:42]}  Nf6 {[%clk 0:01:32]} 31. Nxf6+ {[%clk 0:00:37]}  Bxf6 {[%clk 0:01:25]} 32. a3 {[%clk 0:00:33]}  Rg7 {[%clk 0:01:19]} 33. b4 {[%clk 0:00:26]}  Nc7 {[%clk 0:01:16]} 34. Nc3 {[%clk 0:00:22]}  Ne8 {[%clk 0:01:12]} 35. Be5 {[%clk 0:00:20]}  Qe7 {[%clk 0:01:07]} 36. Qf2 {[%clk 0:00:17]}  a6 {[%clk 0:01:04]} 37. Ne2 {[%clk 0:00:17]}  Bh4 {[%clk 0:00:41]} 38. Qf1 {[%clk 0:00:14]}  Nf6 {[%clk 0:00:29]} 39. Rxg7+ {[%clk 0:00:06]}  Qxg7 {[%clk 0:00:29]} 40. Qg2 {[%clk 0:00:06]}  Qxg2+ {[%clk 0:00:25]} 41. Kxg2 {[%clk 0:00:06]}  Kg6 {[%clk 0:00:23]} 42. Kf1 {[%clk 0:00:04]}  Nd7 {[%clk 0:00:22]} 43. Bd6 {[%clk 0:00:04]}  Nf6 {[%clk 0:00:22]} 44. Be5 {[%clk 0:00:04]}  Nd7 {[%clk 0:00:22]} 45. Ng1 {[%clk 0:00:04]}  Nxe5 {[%clk 0:00:20]} 46. dxe5 {[%clk 0:00:05]}  Bc8 {[%clk 0:00:16]} 47. Ne2 {[%clk 0:00:05]}  Be6 {[%clk 0:00:16]} 48. Nd4 {[%clk 0:00:06]}  Bc8 {[%clk 0:00:16]} 49. Ke2 {[%clk 0:00:07]}  Bd7 {[%clk 0:00:11]} 50. e6 {[%clk 0:00:07]}  Bc8 {[%clk 0:00:11]} 51. Bxf5+ {[%clk 0:00:07]}  Kf6 {[%clk 0:00:12]} 52. Bg4 {[%clk 0:00:07]}  Ke7 {[%clk 0:00:10]} 53. Nf5+ {[%clk 0:00:05]}  Kf6 {[%clk 0:00:09]} 54. Nd6 {[%clk 0:00:05]}  Bxe6 {[%clk 0:00:08]} 55. Bxe6 {[%clk 0:00:06]}  Kxe6 {[%clk 0:00:09]} 56. Nxb7 {[%clk 0:00:07]}  Kd7 {[%clk 0:00:08]} 57. Na5 {[%clk 0:00:07]}  Bd8 {[%clk 0:00:08]} 58. Nb3 {[%clk 0:00:07]}  Kc7 {[%clk 0:00:08]} 59. Nd4 {[%clk 0:00:08]}  Bf6 {[%clk 0:00:08]} 60. Nf5 {[%clk 0:00:08]}  h5 {[%clk 0:00:08]} 61. Ng3 {[%clk 0:00:09]}  h4 {[%clk 0:00:07]} 62. Nf5 {[%clk 0:00:09]}  Kb7 {[%clk 0:00:06]} 63. Nd4 {[%clk 0:00:08]}  Kc7 {[%clk 0:00:06]} 64. Kd2 {[%clk 0:00:08]}  Bxd4 {[%clk 0:00:04]} 65. exd4 {[%clk 0:00:09]}  Kd7 {[%clk 0:00:04]} 66. Ke3 {[%clk 0:00:08]}  Ke6 {[%clk 0:00:04]} 67. f5+ {[%clk 0:00:09]}  Kxf5 {[%clk 0:00:04]} 68. a4 {[%clk 0:00:09]}  Ke6 {[%clk 0:00:04]} 69. Kf4 {[%clk 0:00:09]}  Kd7 {[%clk 0:00:01]} 70. Kg4 {[%clk 0:00:09]} 1-0


[Site "https://www.chess.com"]